Workbook

Sheet login (hidden)

Sheet members (hidden)
B2: user | C2: password | D2: role
B3: KANKOER | C3: KANkoer1987, | D3: KANKONDE ERIC
B4: CELINE | C4: 1234 | D4: USER
B5: BENJAMIN | C5: 1234 | D5: USER
B6: RACHEL | C6: 1234 | D6: USER

Sheet tableau de bord (hidden)
A1: Nouveau client | E1: 1 | F1: 2 | G1: 3 | H1: 4 | I1: 5 | J1: 6 | K1: 7 | L1: 8 | M1: 9 | N1: 10 | O1: 11 | P1: 12
A2: Nom | E2: janvier | F2: février | G2: mars | H2: avril | I2: mai | J2: juin | K2: juillet | L2: août | M2: septembre | N2: octobre | O2: novembre | P2: décembre
A3: Prenom | D3: Total/mois | E3: =SUMIF('historique factures'!$E:$E,E1,'historique factures'!$D:$D) -> 0 | F3: =SUMIF('historique factures'!$E:$E,F1,'historique factures'!$D:$D) -> 0 | G3: =SUMIF('historique factures'!$E:$E,G1,'historique factures'!$D:$D) -> 0 | H3: =SUMIF('historique factures'!$E:$E,H1,'historique factures'!$D:$D) -> 0 | I3: =SUMIF('historique factures'!$E:$E,I1,'historique factures'!$D:$D) -> 0 | J3: =SUMIF('historique factures'!$E:$E,J1,'historique factures'!$D:$D) -> 0 | K3: =SUMIF('historique factures'!$E:$E,K1,'historique factures'!$D:$D) -> 0 | L3: =SUMIF('historique factures'!$E:$E,L1,'historique factures'!$D:$D) -> 0 | M3: =SUMIF('historique factures'!$E:$E,M1,'historique factures'!$D:$D) -> 0 | N3: =SUMIF('historique factures'!$E:$E,N1,'historique factures'!$D:$D) -> 0 | O3: =SUMIF('historique factures'!$E:$E,O1,'historique factures'!$D:$D) -> 0 | P3: =SUMIF('historique factures'!$E:$E,P1,'historique factures'!$D:$D) -> 0
A4: Adresse
A5: Code postal
A6: Tel
A7: ville
A10: Menu
A11: Facture
A12: Stock
A13: historique
A14: Client
A15: TVA
A17: Recapitulatif
A18: Montant Max | B18: =MAX(clients!I:I) -> 0
A19: le melleur client | B19: =VLOOKUP(B18,clients!I:J,2,0) -> MULENGA LUCIEN
A20: Montant Min | B20: =MIN('historique factures'!D:D) -> 699630
A21: Montant moyen | B21: =IFERROR(AVERAGE('historique factures'!D:D),"") -> 699630
A22: Montant median | B22: =IFERROR(MEDIAN('historique factures'!D:D),"") -> 699630
A23: Montant total | B23: =SUM('historique factures'!D:D) -> 699630
A24: Nombre de facture | B24: =COUNT('historique factures'!D:D) -> 1

Sheet facture
D1: =TODAY() -> 2019-04-11
A7: Nº : | C7: 1
A9: Ref | B9: Qte | C9: Designation | D9: TVA | E9: P.U ht | F9: P.U ttc | G9: Total ttc | H9: REF | I9: Qte | J9: EN STOCK | O9: TOTAL HT | P9: TVA
A10: =UPPER(H10) -> A001 | B10: =IF(I10="","",I10) -> 51 | C10: =IFERROR(IF(VLOOKUP(A10,OFFSET(stock!$A$1:$E$1,0,0,COUNTA(stock!$A:$E)),5,FALSE)=0,"rupture de stock", VLOOKUP(A10,OFFSET(stock!$A$1:$E$1,0,0,COUNTA(stock!$A:$E)),2,FALSE)),"") -> SUCRE | D10: =IF(A10="","",VLOOKUP(A10,stock!A:C,3,0)) -> 1 | E10: =IF(B10="","",IFERROR(IF(VLOOKUP(A10,OFFSET(stock!$A$1:$E$1,0,0,COUNTA(stock!$A:$E)),5,FALSE)=0,"-", VLOOKUP(A10,OFFSET(stock!$A$1:$E$1,0,0,COUNTA(stock!$A:$E)),4,FALSE)),"")) -> 2000 | F10: =IFERROR(IF(A10="","",VLOOKUP(D10,TVA!A:B,2,0)*E10+E10),"") -> 2100 | G10: =IFERROR(IF(ISNUMBER(E10),F10*B10,""),"") -> 107100 | H10: A001 | I10: 51 | J10: =IFERROR(VLOOKUP(H10,stock!A:E,5,0),"") -> 50 | O10: =IF(A10="","",B10*E10) -> 102000 | P10: =IF(A10="","",VLOOKUP(D10,TVA!A:B,2,0)*E10*B10) -> 5100
A11: =UPPER(H11) -> A002 | B11: 49 | C11: =IFERROR(IF(VLOOKUP(A11,OFFSET(stock!$A$1:$E$1,0,0,COUNTA(stock!$A:$E)),5,FALSE)=0,"rupture de stock", VLOOKUP(A11,OFFSET(stock!$A$1:$E$1,0,0,COUNTA(stock!$A:$E)),2,FALSE)),"") -> RAMA | D11: =IF(A11="","",VLOOKUP(A11,stock!A:C,3,0)) -> 2 | E11: =IF(B11="","",IFERROR(IF(VLOOKUP(A11,OFFSET(stock!$A$1:$E$1,0,0,COUNTA(stock!$A:$E)),5,FALSE)=0,"-", VLOOKUP(A11,OFFSET(stock!$A$1:$E$1,0,0,COUNTA(stock!$A:$E)),4,FALSE)),"")) -> 3000 | F11: =IFERROR(IF(A11="","",VLOOKUP(D11,TVA!A:B,2,0)*E11+E11),"") -> 3300 | G11: 161700 | H11: A002 | I11: 49 | J11: =IFERROR(VLOOKUP(H11,stock!A:E,5,0),"") -> 48 | O11: =IF(A11="","",B11*E11) -> 147000 | P11: =IF(A11="","",VLOOKUP(D11,TVA!A:B,2,0)*E11*B11) -> 14700
A12: A003 | B12: 51 | C12: =IFERROR(IF(VLOOKUP(A12,OFFSET(stock!$A$1:$E$1,0,0,COUNTA(stock!$A:$E)),5,FALSE)=0,"rupture de stock", VLOOKUP(A12,OFFSET(stock!$A$1:$E$1,0,0,COUNTA(stock!$A:$E)),2,FALSE)),"") -> RIZ | D12: =IF(A12="","",VLOOKUP(A12,stock!A:C,3,0)) -> 1 | E12: =IF(B12="","",IFERROR(IF(VLOOKUP(A12,OFFSET(stock!$A$1:$E$1,0,0,COUNTA(stock!$A:$E)),5,FALSE)=0,"-", VLOOKUP(A12,OFFSET(stock!$A$1:$E$1,0,0,COUNTA(stock!$A:$E)),4,FALSE)),"")) -> 1600 | F12: =IFERROR(IF(A12="","",VLOOKUP(D12,TVA!A:B,2,0)*E12+E12),"") -> 1680 | G12: 85680 | H12: A003 | I12: 51 | J12: =IFERROR(VLOOKUP(H12,stock!A:E,5,0),"") -> 50 | O12: 81600 | P12: =IF(A12="","",VLOOKUP(D12,TVA!A:B,2,0)*E12*B12) -> 4080
A13: A004 | B13: 6 | C13: =IFERROR(IF(VLOOKUP(A13,OFFSET(stock!$A$1:$E$1,0,0,COUNTA(stock!$A:$E)),5,FALSE)=0,"rupture de stock", VLOOKUP(A13,OFFSET(stock!$A$1:$E$1,0,0,COUNTA(stock!$A:$E)),2,FALSE)),"") -> Tomate | D13: =IF(A13="","",VLOOKUP(A13,stock!A:C,3,0)) -> 1 | E13: =IF(B13="","",IFERROR(IF(VLOOKUP(A13,OFFSET(stock!$A$1:$E$1,0,0,COUNTA(stock!$A:$E)),5,FALSE)=0,"-", VLOOKUP(A13,OFFSET(stock!$A$1:$E$1,0,0,COUNTA(stock!$A:$E)),4,FALSE)),"")) -> 10000 | F13: =IFERROR(IF(A13="","",VLOOKUP(D13,TVA!A:B,2,0)*E13+E13),"") -> 10500 | G13: 63000 | H13: A004 | I13: 6 | J13: =IFERROR(VLOOKUP(H13,stock!A:E,5,0),"") -> 5 | O13: 60000 | P13: =IF(A13="","",VLOOKUP(D13,TVA!A:B,2,0)*E13*B13) -> 3000
A14: A005 | B14: 51 | C14: =IFERROR(IF(VLOOKUP(A14,OFFSET(stock!$A$1:$E$1,0,0,COUNTA(stock!$A:$E)),5,FALSE)=0,"rupture de stock", VLOOKUP(A14,OFFSET(stock!$A$1:$E$1,0,0,COUNTA(stock!$A:$E)),2,FALSE)),"") -> JUS | D14: =IF(A14="","",VLOOKUP(A14,stock!A:C,3,0)) -> 2 | E14: =IF(B14="","",IFERROR(IF(VLOOKUP(A14,OFFSET(stock!$A$1:$E$1,0,0,COUNTA(stock!$A:$E)),5,FALSE)=0,"-", VLOOKUP(A14,OFFSET(stock!$A$1:$E$1,0,0,COUNTA(stock!$A:$E)),4,FALSE)),"")) -> 1500 | F14: =IFERROR(IF(A14="","",VLOOKUP(D14,TVA!A:B,2,0)*E14+E14),"") -> 1650 | G14: 84150 | H14: A005 | I14: 51 | J14: =IFERROR(VLOOKUP(H14,stock!A:E,5,0),"") -> 50 | O14: 76500 | P14: =IF(A14="","",VLOOKUP(D14,TVA!A:B,2,0)*E14*B14) -> 7650
A15: A006 | B15: 30 | C15: =IFERROR(IF(VLOOKUP(A15,OFFSET(stock!$A$1:$E$1,0,0,COUNTA(stock!$A:$E)),5,FALSE)=0,"rupture de stock", VLOOKUP(A15,OFFSET(stock!$A$1:$E$1,0,0,COUNTA(stock!$A:$E)),2,FALSE)),"") -> ORANGE | D15: =IF(A15="","",VLOOKUP(A15,stock!A:C,3,0)) -> 2 | E15: =IF(B15="","",IFERROR(IF(VLOOKUP(A15,OFFSET(stock!$A$1:$E$1,0,0,COUNTA(stock!$A:$E)),5,FALSE)=0,"-", VLOOKUP(A15,OFFSET(stock!$A$1:$E$1,0,0,COUNTA(stock!$A:$E)),4,FALSE)),"")) -> 6000 | F15: =IFERROR(IF(A15="","",VLOOKUP(D15,TVA!A:B,2,0)*E15+E15),"") -> 6600 | G15: 198000 | H15: A006 | I15: 30 | J15: =IFERROR(VLOOKUP(H15,stock!A:E,5,0),"") -> 29 | O15: 180000 | P15: =IF(A15="","",VLOOKUP(D15,TVA!A:B,2,0)*E15*B15) -> 18000
C16: =IFERROR(IF(VLOOKUP(A16,OFFSET(stock!$A$1:$E$1,0,0,COUNTA(stock!$A:$E)),5,FALSE)=0,"rupture de stock", VLOOKUP(A16,OFFSET(stock!$A$1:$E$1,0,0,COUNTA(stock!$A:$E)),2,FALSE)),"") ->  | D16: =IF(A16="","",VLOOKUP(A16,stock!A:C,3,0)) ->  | E16: =IF(B16="","",IFERROR(IF(VLOOKUP(A16,OFFSET(stock!$A$1:$E$1,0,0,COUNTA(stock!$A:$E)),5,FALSE)=0,"-", VLOOKUP(A16,OFFSET(stock!$A$1:$E$1,0,0,COUNTA(stock!$A:$E)),4,FALSE)),"")) ->  | F16: =IFERROR(IF(A16="","",VLOOKUP(D16,TVA!A:B,2,0)*E16+E16),"") ->  | J16: =IFERROR(VLOOKUP(H16,stock!A:E,5,0),"") ->  | P16: =IF(A16="","",VLOOKUP(D16,TVA!A:B,2,0)*E16*B16) -> 
C17: =IFERROR(IF(VLOOKUP(A17,OFFSET(stock!$A$1:$E$1,0,0,COUNTA(stock!$A:$E)),5,FALSE)=0,"rupture de stock", VLOOKUP(A17,OFFSET(stock!$A$1:$E$1,0,0,COUNTA(stock!$A:$E)),2,FALSE)),"") ->  | D17: =IF(A17="","",VLOOKUP(A17,stock!A:C,3,0)) ->  | E17: =IF(B17="","",IFERROR(IF(VLOOKUP(A17,OFFSET(stock!$A$1:$E$1,0,0,COUNTA(stock!$A:$E)),5,FALSE)=0,"-", VLOOKUP(A17,OFFSET(stock!$A$1:$E$1,0,0,COUNTA(stock!$A:$E)),4,FALSE)),"")) ->  | F17: =IFERROR(IF(A17="","",VLOOKUP(D17,TVA!A:B,2,0)*E17+E17),"") ->  | J17: =IFERROR(VLOOKUP(H17,stock!A:E,5,0),"") ->  | P17: =IF(A17="","",VLOOKUP(D17,TVA!A:B,2,0)*E17*B17) -> 
C18: =IFERROR(IF(VLOOKUP(A18,OFFSET(stock!$A$1:$E$1,0,0,COUNTA(stock!$A:$E)),5,FALSE)=0,"rupture de stock", VLOOKUP(A18,OFFSET(stock!$A$1:$E$1,0,0,COUNTA(stock!$A:$E)),2,FALSE)),"") ->  | D18: =IF(A18="","",VLOOKUP(A18,stock!A:C,3,0)) ->  | E18: =IF(B18="","",IFERROR(IF(VLOOKUP(A18,OFFSET(stock!$A$1:$E$1,0,0,COUNTA(stock!$A:$E)),5,FALSE)=0,"-", VLOOKUP(A18,OFFSET(stock!$A$1:$E$1,0,0,COUNTA(stock!$A:$E)),4,FALSE)),"")) ->  | F18: =IFERROR(IF(A18="","",VLOOKUP(D18,TVA!A:B,2,0)*E18+E18),"") ->  | J18: =IFERROR(VLOOKUP(H18,stock!A:E,5,0),"") ->  | P18: =IF(A18="","",VLOOKUP(D18,TVA!A:B,2,0)*E18*B18) ->  | R18: =LOWER(R16) -> 
C19: =IFERROR(IF(VLOOKUP(A19,OFFSET(stock!$A$1:$E$1,0,0,COUNTA(stock!$A:$E)),5,FALSE)=0,"rupture de stock", VLOOKUP(A19,OFFSET(stock!$A$1:$E$1,0,0,COUNTA(stock!$A:$E)),2,FALSE)),"") ->  | D19: =IF(A19="","",VLOOKUP(A19,stock!A:C,3,0)) ->  | E19: =IF(B19="","",IFERROR(IF(VLOOKUP(A19,OFFSET(stock!$A$1:$E$1,0,0,COUNTA(stock!$A:$E)),5,FALSE)=0,"-", VLOOKUP(A19,OFFSET(stock!$A$1:$E$1,0,0,COUNTA(stock!$A:$E)),4,FALSE)),"")) ->  | F19: =IFERROR(IF(A19="","",VLOOKUP(D19,TVA!A:B,2,0)*E19+E19),"") ->  | J19: =IFERROR(VLOOKUP(H19,stock!A:E,5,0),"") ->  | P19: =IF(A19="","",VLOOKUP(D19,TVA!A:B,2,0)*E19*B19) -> 
A20: =UPPER(#REF!) ->  | D20: Total ht | G20: =IFERROR(SUM(O10:O19),"") -> 647100
A21: =UPPER(#REF!) ->  | D21: TVA | G21: =IFERROR(SUM(P10:P19),"") -> 52530
A22: =UPPER(#REF!) ->  | D22: Frais de port
A23: =UPPER(#REF!) ->  | D23: TOtal TTC | G23: =IFERROR(IF(G21="","",SUM(G20:G21)),"") -> 699630
A24: =UPPER(#REF!) -> 
A25: =UPPER(#REF!) -> 
A26: =UPPER(#REF!) -> 
A27: =UPPER(#REF!) -> 
A28: =UPPER(#REF!) -> 
A29: =UPPER(#REF!) -> 
A30: =UPPER(#REF!) -> 
A31: =UPPER(#REF!) -> 
A32: =UPPER(#REF!) -> 
A33: =UPPER(#REF!) -> 
A34: =UPPER(#REF!) -> 
A35: =UPPER(#REF!) -> 
A36: =UPPER(#REF!) -> 
A37: =UPPER(#REF!) -> 
A38: =UPPER(#REF!) -> 
A39: =UPPER(#REF!) -> 
A40: =UPPER(#REF!) -> 

Sheet stock
A1: Ref | B1: Designation | C1: Code TVA | D1: Prix HT | E1: STOCK ACTUEL
A2: A001 | B2: SUCRE | C2: 1 | D2: 2000 | E2: 50
A3: A002 | B3: RAMA | C3: 2 | D3: 3000 | E3: 48
A4: A003 | B4: RIZ | C4: 1 | D4: 1600 | E4: 50
A5: A004 | B5: Tomate | C5: 1 | D5: 10000 | E5: 5
A6: A005 | B6: JUS | C6: 2 | D6: 1500 | E6: 50
A7: A006 | B7: ORANGE | C7: 2 | D7: 6000 | E7: 29

Sheet historique factures
A1: N° facture | B1: client | C1: date | D1: montant | E1: mois | U1: =COUNTA(A:A) -> 2
A2: 1 | C2: 2019-04-11 | D2: 699630

Sheet clients (hidden)
A1: identifiant | B1: nom | C1: prenom | D1: adresse | E1: code postal | F1: ville | G1: telephone | H1: facture | I1: Montant total | J1: Identifiant2
A2: =CONCATENATE(B2," ",C2) -> MULENGA LUCIEN | B2: MULENGA | C2: LUCIEN | D2: RUASHI, | E2: 8793 | F2: LUBUMBASHI | G2: 812347456 | H2: =COUNTIF('historique factures'!B:B,A2) -> 0 | I2: =SUMIF('historique factures'!B:B,A2,'historique factures'!D:D) -> 0 | J2: =A2 -> MULENGA LUCIEN
A3: =CONCATENATE(B3," ",C3) -> JEAN ROBERT ILUNGA | B3: JEAN ROBERT | C3: ILUNGA | D3: 34. Q. DAV KALEMIE | E3: 54628 | F3: GOMA | G3: 995422254 | H3: =COUNTIF('historique factures'!B:B,A3) -> 0 | I3: =SUMIF('historique factures'!B:B,A3,'historique factures'!D:D) -> 0 | J3: =A3 -> JEAN ROBERT ILUNGA
A4: =CONCATENATE(B4," ",C4) -> benjamim lubala | B4: benjamim | C4: lubala | D4: n 5 av kongolo Q. Congo C. Ruashi | E4: 263 | F4: kolwezi | G4: 995422254 | H4: =COUNTIF('historique factures'!B:B,A4) -> 0 | I4: =SUMIF('historique factures'!B:B,A4,'historique factures'!D:D) -> 0 | J4: =A4 -> benjamim lubala
A5: =CONCATENATE(B5," ",C5) -> KANKOER ERIC | B5: KANKOER | C5: ERIC | D5: 23 av dilolo Ruashi | E5: 54628 | F5: LUBUMBASHI | G5: 099 58 222 58 | H5: =COUNTIF('historique factures'!B:B,A5) -> 0 | I5: =SUMIF('historique factures'!B:B,A5,'historique factures'!D:D) -> 0 | J5: =A5 -> KANKOER ERIC
A6: =CONCATENATE(B6," ",C6) -> CELINE KANKOER | B6: CELINE | C6: KANKOER | D6: 45 Av kasapa, Kamalondo | E6: 28640 | F6: LIKASI | G6: 097 095 80 37 | H6: =COUNTIF('historique factures'!B:B,A6) -> 0 | I6: =SUMIF('historique factures'!B:B,A6,'historique factures'!D:D) -> 0 | J6: =A6 -> CELINE KANKOER

Sheet TVA (hidden)
A1: Code TVA | B1: Taux
A2: 1 | B2: 0.05
A3: 2 | B3: 0.1
